[Event "Titled Tuesday Blitz February 22 Late 2022"]
[White "Kobo, Ori"]
[Black "Oparin, Grigoriy"]
[WhiteFideId "2812320"]
[BlackFideId "24125890"]
[WhiteElo "2420"]
[BlackElo "2685"]
[Result "1/2-1/2"]
[Round "03"]
[TimeControl "180+1"]
[Date "2022.02.22"]
[WhiteClock "0:00:05"]
[BlackClock "0:00:38"]

1. c4 {[%clk 0:03:00]}  Nf6 {[%clk 0:02:57]} 2. Nc3 {[%clk 0:03:00]}  e6 {[%clk 0:02:58]} 3. d4 {[%clk 0:02:54]}  d5 {[%clk 0:02:56]} 4. cxd5 {[%clk 0:02:53]}  exd5 {[%clk 0:02:57]} 5. Bg5 {[%clk 0:02:53]}  c6 {[%clk 0:02:55]} 6. e3 {[%clk 0:02:53]}  Be7 {[%clk 0:02:55]} 7. Bd3 {[%clk 0:02:53]}  O-O {[%clk 0:02:55]} 8. Qc2 {[%clk 0:02:51]}  Nbd7 {[%clk 0:02:56]} 9. Nge2 {[%clk 0:02:51]}  h6 {[%clk 0:02:56]} 10. Bh4 {[%clk 0:02:47]}  Re8 {[%clk 0:02:57]} 11. f3 {[%clk 0:02:46]}  a5 {[%clk 0:02:57]} 12. O-O {[%clk 0:02:44]}  Nf8 {[%clk 0:02:57]} 13. Kh1 {[%clk 0:02:43]}  b5 {[%clk 0:02:57]} 14. Rad1 {[%clk 0:02:41]}  Bd7 {[%clk 0:02:54]} 15. Bf2 {[%clk 0:02:34]}  Ne6 {[%clk 0:02:52]} 16. e4 {[%clk 0:02:29]}  b4 {[%clk 0:02:52]} 17. Na4 {[%clk 0:02:29]}  Nh5 {[%clk 0:02:51]} 18. e5 {[%clk 0:01:42]}  Nhf4 {[%clk 0:02:45]} 19. Nxf4 {[%clk 0:01:42]}  Nxf4 {[%clk 0:02:46]} 20. Bh7+ {[%clk 0:01:42]}  Kh8 {[%clk 0:02:45]} 21. Bf5 {[%clk 0:01:42]}  Ne6 {[%clk 0:02:24]} 22. Be3 {[%clk 0:01:38]}  Rc8 {[%clk 0:02:21]} 23. f4 {[%clk 0:01:38]}  Bf8 {[%clk 0:02:15]} 24. Bd3 {[%clk 0:01:29]}  c5 {[%clk 0:02:09]} 25. Nxc5 {[%clk 0:01:23]}  Bxc5 {[%clk 0:02:08]} 26. dxc5 {[%clk 0:01:24]}  d4 {[%clk 0:02:09]} 27. Bg1 {[%clk 0:01:17]}  Nxc5 {[%clk 0:02:06]} 28. Qe2 {[%clk 0:01:04]}  Nxd3 {[%clk 0:01:45]} 29. Qxd3 {[%clk 0:01:05]}  Bg4 {[%clk 0:01:45]} 30. Rd2 {[%clk 0:01:03]}  Qd5 {[%clk 0:01:42]} 31. b3 {[%clk 0:00:45]}  Red8 {[%clk 0:01:39]} 32. Bxd4 {[%clk 0:00:26]}  Rd7 {[%clk 0:01:17]} 33. h3 {[%clk 0:00:23]}  Rc3 {[%clk 0:01:09]} 34. Bxc3 {[%clk 0:00:22]}  Qxd3 {[%clk 0:01:08]} 35. Rxd3 {[%clk 0:00:22]}  Rxd3 {[%clk 0:01:09]} 36. Bxb4 {[%clk 0:00:14]}  Bxh3 {[%clk 0:01:08]} 37. Bxa5 {[%clk 0:00:10]}  Bf5 {[%clk 0:01:08]} 38. Rf2 {[%clk 0:00:09]}  h5 {[%clk 0:01:05]} 39. b4 {[%clk 0:00:08]}  Kh7 {[%clk 0:00:59]} 40. b5 {[%clk 0:00:08]}  Rd5 {[%clk 0:00:57]} 41. Rb2 {[%clk 0:00:07]}  Be4 {[%clk 0:00:58]} 42. Bc7 {[%clk 0:00:07]}  Rd4 {[%clk 0:00:50]} 43. b6 {[%clk 0:00:06]}  Bb7 {[%clk 0:00:50]} 44. e6 {[%clk 0:00:06]}  fxe6 {[%clk 0:00:49]} 45. Kh2 {[%clk 0:00:06]}  g5 {[%clk 0:00:48]} 46. fxg5 {[%clk 0:00:06]}  Kg6 {[%clk 0:00:49]} 47. Re2 {[%clk 0:00:04]}  Kxg5 {[%clk 0:00:42]} 48. Rxe6 {[%clk 0:00:03]}  Rd2 {[%clk 0:00:42]} 49. Re5+ {[%clk 0:00:03]}  Kf6 {[%clk 0:00:41]} 50. Rxh5 {[%clk 0:00:03]}  Rxg2+ {[%clk 0:00:42]} 51. Kh3 {[%clk 0:00:03]}  Rxa2 {[%clk 0:00:43]} 52. Rh6+ {[%clk 0:00:03]}  Kg5 {[%clk 0:00:43]} 53. Rh8 {[%clk 0:00:03]}  Rb2 {[%clk 0:00:43]} 54. Rg8+ {[%clk 0:00:03]}  Kf5 {[%clk 0:00:43]} 55. Rb8 {[%clk 0:00:04]}  Bc6 {[%clk 0:00:40]} 56. Kg3 {[%clk 0:00:04]}  Rb3+ {[%clk 0:00:39]} 57. Kf2 {[%clk 0:00:05]}  Ke4 {[%clk 0:00:40]} 58. Rd8 {[%clk 0:00:04]}  Rb2+ {[%clk 0:00:40]} 59. Kg3 {[%clk 0:00:04]}  Kf5 {[%clk 0:00:40]} 60. Rd6 {[%clk 0:00:05]}  Bb7 {[%clk 0:00:39]} 61. Rd8 {[%clk 0:00:05]}  Bc6 {[%clk 0:00:38]} 62. Rd6 {[%clk 0:00:05]}  Bb7 {[%clk 0:00:39]} 63. Rd4 {[%clk 0:00:06]}  Rg2+ {[%clk 0:00:38]} 64. Kh3 {[%clk 0:00:06]}  Rf2 {[%clk 0:00:37]} 65. Rd8 {[%clk 0:00:03]}  Rf3+ {[%clk 0:00:36]} 66. Kh2 {[%clk 0:00:03]}  Rf2+ {[%clk 0:00:37]} 67. Kh3 {[%clk 0:00:04]}  Rf3+ {[%clk 0:00:37]} 68. Kh2 {[%clk 0:00:05]}  Rf2+ {[%clk 0:00:38]} 69. Kh3 {[%clk 0:00:05]} 1/2-1/2


[Site "https://www.chess.com"]

[Event "Titled Tuesday Blitz February 22 Late 2022"]
[White "Kosakowski, Jakub"]
[Black "Tang, Andrew"]
[WhiteFideId "1185080"]
[BlackFideId "2059630"]
[WhiteElo "2476"]
[BlackElo "2584"]
[Result "0-1"]
[Round "03"]
[TimeControl "180+1"]
[Date "2022.02.22"]
[WhiteClock "0:00:07"]
[BlackClock "0:00:06"]

1. d4 {[%clk 0:02:55]}  d5 {[%clk 0:02:59]} 2. Nf3 {[%clk 0:02:55]}  Nf6 {[%clk 0:02:59]} 3. c4 {[%clk 0:02:56]}  e6 {[%clk 0:02:59]} 4. Nc3 {[%clk 0:02:56]}  Be7 {[%clk 0:02:59]} 5. Bf4 {[%clk 0:02:55]}  O-O {[%clk 0:03:00]} 6. e3 {[%clk 0:02:55]}  b6 {[%clk 0:02:56]} 7. Rc1 {[%clk 0:02:52]}  c5 {[%clk 0:02:48]} 8. cxd5 {[%clk 0:02:47]}  Nxd5 {[%clk 0:02:49]} 9. Nxd5 {[%clk 0:02:47]}  exd5 {[%clk 0:02:50]} 10. Bd3 {[%clk 0:02:44]}  c4 {[%clk 0:02:47]} 11. Bb1 {[%clk 0:02:44]}  Bb4+ {[%clk 0:02:32]} 12. Nd2 {[%clk 0:02:38]}  Nc6 {[%clk 0:02:29]} 13. O-O {[%clk 0:02:37]}  b5 {[%clk 0:02:24]} 14. Nf3 {[%clk 0:02:21]}  Bg4 {[%clk 0:02:07]} 15. b3 {[%clk 0:02:01]}  Ba3 {[%clk 0:01:34]} 16. Rc2 {[%clk 0:01:50]}  Nb4 {[%clk 0:01:20]} 17. Rc3 {[%clk 0:01:48]}  Bb2 {[%clk 0:01:17]} 18. Bxh7+ {[%clk 0:01:28]}  Kh8 {[%clk 0:00:42]} 19. Rc2 {[%clk 0:01:23]}  Ba3 {[%clk 0:00:26]} 20. Rc3 {[%clk 0:01:18]}  Nxa2 {[%clk 0:00:21]} 21. Rc2 {[%clk 0:01:05]}  Nb4 {[%clk 0:00:17]} 22. bxc4 {[%clk 0:00:53]}  Nxc2 {[%clk 0:00:10]} 23. Bxc2 {[%clk 0:00:53]}  bxc4 {[%clk 0:00:07]} 24. h3 {[%clk 0:00:47]}  Bh5 {[%clk 0:00:07]} 25. g4 {[%clk 0:00:20]}  Bg6 {[%clk 0:00:07]} 26. Ne5 {[%clk 0:00:20]}  Bxc2 {[%clk 0:00:07]} 27. Qxc2 {[%clk 0:00:21]}  Bd6 {[%clk 0:00:07]} 28. Qf5 {[%clk 0:00:21]}  Bxe5 {[%clk 0:00:05]} 29. Bxe5 {[%clk 0:00:21]}  Kg8 {[%clk 0:00:06]} 30. g5 {[%clk 0:00:20]}  Qc8 {[%clk 0:00:06]} 31. Qf3 {[%clk 0:00:20]}  Qe6 {[%clk 0:00:07]} 32. h4 {[%clk 0:00:20]}  a5 {[%clk 0:00:07]} 33. h5 {[%clk 0:00:20]}  a4 {[%clk 0:00:05]} 34. h6 {[%clk 0:00:21]}  gxh6 {[%clk 0:00:05]} 35. gxh6 {[%clk 0:00:20]}  Kh7 {[%clk 0:00:05]} 36. Rb1 {[%clk 0:00:17]}  a3 {[%clk 0:00:05]} 37. Qg3 {[%clk 0:00:06]}  Rg8 {[%clk 0:00:04]} 38. Bg7 {[%clk 0:00:06]}  a2 {[%clk 0:00:04]} 39. Ra1 {[%clk 0:00:07]}  Qg6 {[%clk 0:00:04]} 40. Qxg6+ {[%clk 0:00:06]}  fxg6 {[%clk 0:00:05]} 41. Kf1 {[%clk 0:00:07]}  Rgb8 {[%clk 0:00:06]} 0-1


[Site "https://www.chess.com"]

[Event "Titled Tuesday Blitz February 22 Late 2022"]
[White "Lin, Dachey"]
[Black "Gupta, Abhijeet"]
[WhiteFideId "2029650"]
[BlackFideId "5010608"]
[WhiteElo "2731"]
[BlackElo "2549"]
[Result "0-1"]
[Round "03"]
[TimeControl "180+1"]
[Date "2022.02.22"]
[WhiteClock "0:00:35"]
[BlackClock "0:01:24"]

1. Nc3 {[%clk 0:03:00]}  c5 {[%clk 0:02:58]} 2. e4 {[%clk 0:03:01]}  d6 {[%clk 0:02:57]} 3. f4 {[%clk 0:03:02]}  Nc6 {[%clk 0:02:51]} 4. Nf3 {[%clk 0:03:03]}  g6 {[%clk 0:02:50]} 5. Bc4 {[%clk 0:03:03]}  Bg7 {[%clk 0:02:47]} 6. d3 {[%clk 0:03:03]}  e6 {[%clk 0:02:39]} 7. O-O {[%clk 0:02:36]}  Nge7 {[%clk 0:02:38]} 8. Bb3 {[%clk 0:02:28]}  O-O {[%clk 0:02:37]} 9. Be3 {[%clk 0:02:28]}  b6 {[%clk 0:02:33]} 10. Qe1 {[%clk 0:02:21]}  Bb7 {[%clk 0:02:28]} 11. Qh4 {[%clk 0:02:20]}  d5 {[%clk 0:02:18]} 12. f5 {[%clk 0:02:08]}  gxf5 {[%clk 0:02:13]} 13. exd5 {[%clk 0:02:00]}  Nxd5 {[%clk 0:02:06]} 14. Qxd8 {[%clk 0:02:00]}  Raxd8 {[%clk 0:02:02]} 15. Nxd5 {[%clk 0:02:00]}  exd5 {[%clk 0:02:03]} 16. c3 {[%clk 0:01:59]}  d4 {[%clk 0:01:58]} 17. Bg5 {[%clk 0:01:54]}  dxc3 {[%clk 0:01:47]} 18. Bxd8 {[%clk 0:00:55]}  cxb2 {[%clk 0:01:45]} 19. Rab1 {[%clk 0:00:56]}  Re8 {[%clk 0:01:44]} 20. Bh4 {[%clk 0:00:38]}  Nd4 {[%clk 0:01:38]} 21. Nxd4 {[%clk 0:00:37]}  Bxd4+ {[%clk 0:01:35]} 22. Bf2 {[%clk 0:00:37]}  Re2 {[%clk 0:01:28]} 23. Bxd4 {[%clk 0:00:36]}  Rxg2+ {[%clk 0:01:24]} 24. Kh1 {[%clk 0:00:35]}  Rg4+ {[%clk 0:01:24]} 0-1


[Site "https://www.chess.com"]

[Event "Titled Tuesday Blitz February 22 Late 2022"]
[White "Loay, Sameer"]
[Black "Yang, Kaiqi"]
[WhiteFideId "8104239"]
[BlackFideId "8604398"]
[WhiteElo "2040"]
[BlackElo "2373"]
[Result "0-1"]
[Round "03"]
[TimeControl "180+1"]
[Date "2022.02.23"]
[WhiteClock "0:00:29"]
[BlackClock "0:00:16"]

1. Nf3 {[%clk 0:02:53]}  Nf6 {[%clk 0:02:59]} 2. g3 {[%clk 0:02:52]}  g6 {[%clk 0:02:59]} 3. Bg2 {[%clk 0:02:52]}  Bg7 {[%clk 0:02:59]} 4. O-O {[%clk 0:02:53]}  O-O {[%clk 0:03:00]} 5. d3 {[%clk 0:02:54]}  d5 {[%clk 0:02:59]} 6. c3 {[%clk 0:02:54]}  c5 {[%clk 0:02:59]} 7. Qa4 {[%clk 0:02:55]}  Nc6 {[%clk 0:02:57]} 8. Qh4 {[%clk 0:02:54]}  e5 {[%clk 0:02:44]} 9. Bg5 {[%clk 0:02:53]}  Qd6 {[%clk 0:02:44]} 10. Na3 {[%clk 0:02:53]}  a6 {[%clk 0:02:38]} 11. e4 {[%clk 0:02:53]}  Re8 {[%clk 0:02:14]} 12. Rfe1 {[%clk 0:02:38]}  b5 {[%clk 0:02:05]} 13. exd5 {[%clk 0:02:13]}  Nxd5 {[%clk 0:02:04]} 14. d4 {[%clk 0:02:13]}  Bb7 {[%clk 0:01:45]} 15. dxe5 {[%clk 0:02:06]}  Nxe5 {[%clk 0:01:45]} 16. Nxe5 {[%clk 0:02:07]}  Rxe5 {[%clk 0:01:45]} 17. Rxe5 {[%clk 0:02:07]}  Qxe5 {[%clk 0:01:42]} 18. Nc2 {[%clk 0:02:00]}  Re8 {[%clk 0:01:28]} 19. Re1 {[%clk 0:01:35]}  Qb8 {[%clk 0:01:28]} 20. Rd1 {[%clk 0:01:31]}  Nb6 {[%clk 0:01:23]} 21. Bf4 {[%clk 0:01:28]}  Qc8 {[%clk 0:01:22]} 22. Bxb7 {[%clk 0:01:22]}  Qxb7 {[%clk 0:01:23]} 23. Rd8 {[%clk 0:01:19]}  Qe4 {[%clk 0:01:10]} 24. Ne3 {[%clk 0:01:17]}  Na4 {[%clk 0:00:56]} 25. Rxe8+ {[%clk 0:00:57]}  Qxe8 {[%clk 0:00:55]} 26. Qg5 {[%clk 0:00:58]}  Nxb2 {[%clk 0:00:49]} 27. Qxc5 {[%clk 0:00:57]}  Nd3 {[%clk 0:00:49]} 28. Qd6 {[%clk 0:00:53]}  Nxf4 {[%clk 0:00:48]} 29. gxf4 {[%clk 0:00:52]}  Bxc3 {[%clk 0:00:46]} 30. f5 {[%clk 0:00:53]}  Qe5 {[%clk 0:00:28]} 31. Qxa6 {[%clk 0:00:50]}  Kg7 {[%clk 0:00:24]} 32. fxg6 {[%clk 0:00:43]}  hxg6 {[%clk 0:00:25]} 33. Qc6 {[%clk 0:00:40]}  Bd4 {[%clk 0:00:23]} 34. Ng4 {[%clk 0:00:25]}  Qf4 {[%clk 0:00:18]} 35. Qg2 {[%clk 0:00:13]}  b4 {[%clk 0:00:17]} 36. h3 {[%clk 0:00:13]}  Qc1+ {[%clk 0:00:14]} 37. Kh2 {[%clk 0:00:13]}  Qc7+ {[%clk 0:00:13]} 38. Qg3 {[%clk 0:00:14]}  Qc4 {[%clk 0:00:13]} 39. Qf4 {[%clk 0:00:13]}  Qd5 {[%clk 0:00:12]} 40. h4 {[%clk 0:00:13]}  Bc3 {[%clk 0:00:12]} 41. Qh6+ {[%clk 0:00:13]}  Kg8 {[%clk 0:00:11]} 42. Qf4 {[%clk 0:00:14]}  Qxa2 {[%clk 0:00:10]} 43. Nh6+ {[%clk 0:00:14]}  Kg7 {[%clk 0:00:08]} 44. Ng4 {[%clk 0:00:15]}  Qe6 {[%clk 0:00:07]} 45. h5 {[%clk 0:00:15]}  gxh5 {[%clk 0:00:07]} 46. Qg5+ {[%clk 0:00:16]}  Qg6 {[%clk 0:00:07]} 47. Qxg6+ {[%clk 0:00:16]}  Kxg6 {[%clk 0:00:07]} 48. Ne3 {[%clk 0:00:17]}  b3 {[%clk 0:00:07]} 49. Nd1 {[%clk 0:00:17]}  b2 {[%clk 0:00:08]} 50. Nxb2 {[%clk 0:00:18]}  Bxb2 {[%clk 0:00:08]} 51. Kg3 {[%clk 0:00:18]}  Bd4 {[%clk 0:00:09]} 52. f3 {[%clk 0:00:19]}  Kg5 {[%clk 0:00:09]} 53. Kh3 {[%clk 0:00:20]}  f5 {[%clk 0:00:10]} 54. f4+ {[%clk 0:00:21]}  Kxf4 {[%clk 0:00:10]} 55. Kh4 {[%clk 0:00:21]}  Ke4 {[%clk 0:00:10]} 56. Kxh5 {[%clk 0:00:22]}  f4 {[%clk 0:00:11]} 57. Kg4 {[%clk 0:00:23]}  f3 {[%clk 0:00:12]} 58. Kg3 {[%clk 0:00:24]}  Ke3 {[%clk 0:00:12]} 59. Kh2 {[%clk 0:00:24]}  f2 {[%clk 0:00:12]} 60. Kg2 {[%clk 0:00:25]}  Ke2 {[%clk 0:00:13]} 61. Kg3 {[%clk 0:00:26]}  f1=Q {[%clk 0:00:13]} 62. Kg4 {[%clk 0:00:27]}  Qf2 {[%clk 0:00:14]} 63. Kg5 {[%clk 0:00:28]}  Qf3 {[%clk 0:00:14]} 64. Kg6 {[%clk 0:00:28]}  Qf4 {[%clk 0:00:15]} 65. Kh7 {[%clk 0:00:29]}  Qg3 {[%clk 0:00:14]} 66. Kh6 {[%clk 0:00:29]}  Be3+ {[%clk 0:00:14]} 67. Kh7 {[%clk 0:00:28]}  Kf3 {[%clk 0:00:15]} 68. Kh8 {[%clk 0:00:28]}  Kf4 {[%clk 0:00:15]} 69. Kh7 {[%clk 0:00:29]}  Kf5 {[%clk 0:00:16]} 70. Kh8 {[%clk 0:00:29]}  Bd4+ {[%clk 0:00:16]} 0-1


[Site "https://www.chess.com"]

[Event "Titled Tuesday Blitz February 22 Late 2022"]
[White "Maksimovic, Bojan"]
[Black "Lewicki, Miroslaw"]
[WhiteFideId "14408120"]
[BlackFideId "1113380"]
[WhiteElo "2450"]
[BlackElo "2283"]
[Result "1-0"]
[Round "03"]
[TimeControl "180+1"]
[Date "2022.02.23"]
[WhiteClock "0:01:24"]
[BlackClock "0:00:06"]

1. a3 {[%clk 0:03:00]}  a6 {[%clk 0:02:55]} 2. d4 {[%clk 0:02:56]}  b5 {[%clk 0:02:55]} 3. e4 {[%clk 0:02:56]}  Bb7 {[%clk 0:02:55]} 4. Bd3 {[%clk 0:02:56]}  Nf6 {[%clk 0:02:55]} 5. Nd2 {[%clk 0:02:55]}  e6 {[%clk 0:02:55]} 6. Ngf3 {[%clk 0:02:55]}  c5 {[%clk 0:02:56]} 7. c3 {[%clk 0:02:51]}  Be7 {[%clk 0:02:53]} 8. O-O {[%clk 0:02:50]}  O-O {[%clk 0:02:52]} 9. Qe2 {[%clk 0:02:50]}  Nc6 {[%clk 0:02:48]} 10. h3 {[%clk 0:02:46]}  Re8 {[%clk 0:02:28]} 11. Rd1 {[%clk 0:02:46]}  d5 {[%clk 0:02:28]} 12. e5 {[%clk 0:02:46]}  Nd7 {[%clk 0:02:28]} 13. Nf1 {[%clk 0:02:45]}  Nf8 {[%clk 0:02:27]} 14. Ng3 {[%clk 0:02:42]}  c4 {[%clk 0:02:22]} 15. Bc2 {[%clk 0:02:38]}  a5 {[%clk 0:02:23]} 16. Nh5 {[%clk 0:02:35]}  b4 {[%clk 0:02:20]} 17. Qd2 {[%clk 0:02:20]}  Ng6 {[%clk 0:01:58]} 18. g3 {[%clk 0:02:13]}  b3 {[%clk 0:01:32]} 19. Bb1 {[%clk 0:02:12]}  a4 {[%clk 0:01:33]} 20. Nxg7 {[%clk 0:02:06]}  Kxg7 {[%clk 0:01:10]} 21. Qh6+ {[%clk 0:02:06]}  Kg8 {[%clk 0:00:55]} 22. Ng5 {[%clk 0:02:06]}  Bxg5 {[%clk 0:00:54]} 23. Bxg5 {[%clk 0:02:07]}  Re7 {[%clk 0:00:36]} 24. Bf6 {[%clk 0:01:37]}  Qf8 {[%clk 0:00:34]} 25. Qg5 {[%clk 0:01:38]}  h6 {[%clk 0:00:17]} 26. Qg4 {[%clk 0:01:33]}  Kh7 {[%clk 0:00:17]} 27. h4 {[%clk 0:01:33]}  Qg8 {[%clk 0:00:16]} 28. h5 {[%clk 0:01:34]}  Rd7 {[%clk 0:00:15]} 29. Kg2 {[%clk 0:01:28]}  Ne7 {[%clk 0:00:15]} 30. Rh1 {[%clk 0:01:28]}  Nf5 {[%clk 0:00:10]} 31. Bxf5 {[%clk 0:01:28]}  exf5 {[%clk 0:00:11]} 32. Qxf5 {[%clk 0:01:27]}  Bc8 {[%clk 0:00:11]} 33. hxg6+ {[%clk 0:01:26]}  Qxg6 {[%clk 0:00:11]} 34. Rxh6+ {[%clk 0:01:25]}  Kxh6 {[%clk 0:00:05]} 35. Rh1+ {[%clk 0:01:24]}  Qh5 {[%clk 0:00:06]} 36. Qxh5# {[%clk 0:01:24]} 1-0


[Site "https://www.chess.com"]

[Event "Titled Tuesday Blitz February 22 Late 2022"]
[White "Martin Barcelo, Carles"]
[Black "Rustemov, Alexander"]
[WhiteFideId "24561444"]
[BlackFideId "4119002"]
[WhiteElo "1875"]
[BlackElo "2693"]
[Result "0-1"]
[Round "03"]
[TimeControl "180+1"]
[Date "2022.02.23"]
[WhiteClock "0:00:03"]
[BlackClock "0:00:17"]

1. e4 {[%clk 0:03:00]}  e6 {[%clk 0:03:00]} 2. d4 {[%clk 0:02:58]}  d5 {[%clk 0:03:00]} 3. Bd3 {[%clk 0:02:59]}  dxe4 {[%clk 0:02:59]} 4. Bxe4 {[%clk 0:02:59]}  Nf6 {[%clk 0:03:00]} 5. Bf3 {[%clk 0:03:00]}  c5 {[%clk 0:03:00]} 6. Ne2 {[%clk 0:03:00]}  Nc6 {[%clk 0:03:01]} 7. Be3 {[%clk 0:02:59]}  cxd4 {[%clk 0:03:01]} 8. Nxd4 {[%clk 0:02:59]}  Ne5 {[%clk 0:03:02]} 9. Nc3 {[%clk 0:03:00]}  Be7 {[%clk 0:03:02]} 10. Qe2 {[%clk 0:02:51]}  O-O {[%clk 0:03:01]} 11. O-O-O {[%clk 0:02:51]}  Nxf3 {[%clk 0:03:01]} 12. Qxf3 {[%clk 0:01:54]}  Bd7 {[%clk 0:02:32]} 13. Rhe1 {[%clk 0:01:50]}  Qa5 {[%clk 0:02:26]} 14. Nb3 {[%clk 0:01:47]}  Qc7 {[%clk 0:02:22]} 15. Bf4 {[%clk 0:01:47]}  Qc4 {[%clk 0:02:14]} 16. Rd4 {[%clk 0:01:39]}  Qc6 {[%clk 0:02:10]} 17. Qxc6 {[%clk 0:01:32]}  Bxc6 {[%clk 0:02:11]} 18. f3 {[%clk 0:01:32]}  Rfd8 {[%clk 0:01:53]} 19. Rxd8+ {[%clk 0:01:32]}  Bxd8 {[%clk 0:01:51]} 20. Nd4 {[%clk 0:01:31]}  Be8 {[%clk 0:01:49]} 21. Ndb5 {[%clk 0:01:23]}  Bd7 {[%clk 0:01:23]} 22. Bc7 {[%clk 0:01:03]}  Be7 {[%clk 0:01:18]} 23. Bd6 {[%clk 0:01:03]}  Bd8 {[%clk 0:01:17]} 24. Bc7 {[%clk 0:01:03]}  a6 {[%clk 0:01:07]} 25. Bxd8 {[%clk 0:01:01]}  Rxd8 {[%clk 0:01:08]} 26. Nd6 {[%clk 0:00:53]}  Bc6 {[%clk 0:01:07]} 27. Nc4 {[%clk 0:00:53]}  b5 {[%clk 0:01:00]} 28. Na5 {[%clk 0:00:31]}  Be8 {[%clk 0:00:53]} 29. Rd1 {[%clk 0:00:26]}  Rxd1+ {[%clk 0:00:52]} 30. Kxd1 {[%clk 0:00:27]}  Kf8 {[%clk 0:00:53]} 31. Kd2 {[%clk 0:00:25]}  Ke7 {[%clk 0:00:53]} 32. Kd3 {[%clk 0:00:17]}  e5 {[%clk 0:00:53]} 33. a4 {[%clk 0:00:17]}  bxa4 {[%clk 0:00:49]} 34. Nc4 {[%clk 0:00:12]}  Ke6 {[%clk 0:00:47]} 35. Nb6 {[%clk 0:00:11]}  a3 {[%clk 0:00:46]} 36. bxa3 {[%clk 0:00:12]}  Bc6 {[%clk 0:00:35]} 37. Nba4 {[%clk 0:00:09]}  Kd6 {[%clk 0:00:33]} 38. Nb2 {[%clk 0:00:09]}  Nd7 {[%clk 0:00:32]} 39. Nc4+ {[%clk 0:00:08]}  Ke6 {[%clk 0:00:32]} 40. Nd2 {[%clk 0:00:06]}  f5 {[%clk 0:00:32]} 41. Nb3 {[%clk 0:00:06]}  Kd6 {[%clk 0:00:32]} 42. Ke3 {[%clk 0:00:06]}  g5 {[%clk 0:00:30]} 43. Ne2 {[%clk 0:00:07]}  f4+ {[%clk 0:00:27]} 44. Kd3 {[%clk 0:00:07]}  e4+ {[%clk 0:00:28]} 45. fxe4 {[%clk 0:00:07]}  Ne5+ {[%clk 0:00:26]} 46. Kd4 {[%clk 0:00:07]}  f3 {[%clk 0:00:27]} 47. gxf3 {[%clk 0:00:07]}  Nxf3+ {[%clk 0:00:27]} 48. Ke3 {[%clk 0:00:08]}  Nxh2 {[%clk 0:00:28]} 49. Ned4 {[%clk 0:00:07]}  Ng4+ {[%clk 0:00:26]} 50. Kf3 {[%clk 0:00:06]}  Ne5+ {[%clk 0:00:26]} 51. Ke3 {[%clk 0:00:07]}  Nc4+ {[%clk 0:00:23]} 52. Kd3 {[%clk 0:00:06]}  Nxa3 {[%clk 0:00:23]} 53. c4 {[%clk 0:00:07]}  Bd7 {[%clk 0:00:19]} 54. c5+ {[%clk 0:00:07]}  Ke5 {[%clk 0:00:19]} 55. c6 {[%clk 0:00:07]}  Bc8 {[%clk 0:00:20]} 56. Nc5 {[%clk 0:00:07]}  Nb5 {[%clk 0:00:18]} 57. Ndb3 {[%clk 0:00:03]}  Kd6 {[%clk 0:00:18]} 58. c7 {[%clk 0:00:02]}  Kxc7 {[%clk 0:00:18]} 59. Ke3 {[%clk 0:00:03]}  Kd6 {[%clk 0:00:18]} 60. Kf3 {[%clk 0:00:03]}  a5 {[%clk 0:00:18]} 61. Nd3 {[%clk 0:00:02]}  a4 {[%clk 0:00:18]} 62. Nd4 {[%clk 0:00:03]}  Nxd4+ {[%clk 0:00:18]} 63. Ke3 {[%clk 0:00:03]}  Nc6 {[%clk 0:00:17]} 0-1


[Site "https://www.chess.com"]

[Event "Titled Tuesday Blitz February 22 Late 2022"]
[White "Melian, Juan Sebastian"]
[Black "Vlassov, Nikolai"]
[WhiteFideId "3706575"]
[BlackFideId "4103360"]
[WhiteElo "1842"]
[BlackElo "2407"]
[Result "0-1"]
[Round "03"]
[TimeControl "180+1"]
[Date "2022.02.23"]
[WhiteClock "0:00:04"]
[BlackClock "0:00:24"]

1. b3 {[%clk 0:03:00]}  e5 {[%clk 0:02:59]} 2. Bb2 {[%clk 0:03:01]}  Nc6 {[%clk 0:02:58]} 3. e3 {[%clk 0:03:00]}  d5 {[%clk 0:02:59]} 4. c4 {[%clk 0:02:58]}  d4 {[%clk 0:02:58]} 5. g3 {[%clk 0:02:49]}  h5 {[%clk 0:02:56]} 6. h3 {[%clk 0:02:48]}  h4 {[%clk 0:02:55]} 7. g4 {[%clk 0:02:47]}  f5 {[%clk 0:02:55]} 8. gxf5 {[%clk 0:02:45]}  Bxf5 {[%clk 0:02:54]} 9. d3 {[%clk 0:02:25]}  dxe3 {[%clk 0:02:47]} 10. fxe3 {[%clk 0:02:25]}  Qg5 {[%clk 0:02:37]} 11. Qf3 {[%clk 0:02:24]}  O-O-O {[%clk 0:02:34]} 12. e4 {[%clk 0:02:02]}  Bb4+ {[%clk 0:02:27]} 13. Kd1 {[%clk 0:01:49]}  Bg6 {[%clk 0:02:21]} 14. Be2 {[%clk 0:01:22]}  Nf6 {[%clk 0:02:20]} 15. Kc2 {[%clk 0:01:06]}  Rhf8 {[%clk 0:02:12]} 16. a3 {[%clk 0:00:59]}  Bc5 {[%clk 0:02:02]} 17. Nd2 {[%clk 0:00:58]}  Kb8 {[%clk 0:01:52]} 18. Rh2 {[%clk 0:00:45]}  Bxg1 {[%clk 0:01:42]} 19. Rg2 {[%clk 0:00:43]}  Qxd2+ {[%clk 0:01:42]} 20. Kxd2 {[%clk 0:00:42]}  Nxe4+ {[%clk 0:01:43]} 21. Kc2 {[%clk 0:00:21]}  Rxf3 {[%clk 0:01:40]} 22. Bxf3 {[%clk 0:00:22]}  Ng3 {[%clk 0:01:35]} 23. Raxg1 {[%clk 0:00:12]}  Bxd3+ {[%clk 0:01:31]} 24. Kc1 {[%clk 0:00:10]}  e4 {[%clk 0:01:30]} 25. Bd1 {[%clk 0:00:08]}  g5 {[%clk 0:00:49]} 26. Bf6 {[%clk 0:00:07]}  Rg8 {[%clk 0:00:49]} 27. Rxg3 {[%clk 0:00:07]}  hxg3 {[%clk 0:00:48]} 28. Rxg3 {[%clk 0:00:08]}  a5 {[%clk 0:00:38]} 29. Rxg5 {[%clk 0:00:05]}  Rf8 {[%clk 0:00:36]} 30. Bc3 {[%clk 0:00:04]}  Rf1 {[%clk 0:00:34]} 31. Kd2 {[%clk 0:00:04]}  a4 {[%clk 0:00:29]} 32. bxa4 {[%clk 0:00:03]}  Bxc4 {[%clk 0:00:29]} 33. Re5 {[%clk 0:00:01]}  Nxe5 {[%clk 0:00:27]} 34. Bxe5 {[%clk 0:00:02]}  Rh1 {[%clk 0:00:24]} 35. Bg4 {[%clk 0:00:02]}  Bf1 {[%clk 0:00:24]} 36. Ke3 {[%clk 0:00:01]}  Bxh3 {[%clk 0:00:23]} 37. Bxh3 {[%clk 0:00:01]}  Rxh3+ {[%clk 0:00:24]} 38. Kxe4 {[%clk 0:00:02]}  Rxa3 {[%clk 0:00:24]} 39. a5 {[%clk 0:00:03]}  Rxa5 {[%clk 0:00:24]} 40. Bc3 {[%clk 0:00:02]}  Ra4+ {[%clk 0:00:24]} 41. Kd5 {[%clk 0:00:02]}  c6+ {[%clk 0:00:23]} 42. Kc5 {[%clk 0:00:02]}  Ka7 {[%clk 0:00:23]} 43. Bd4 {[%clk 0:00:02]}  Ka6 {[%clk 0:00:24]} 44. Kd6 {[%clk 0:00:02]}  Rxd4+ {[%clk 0:00:23]} 45. Kc5 {[%clk 0:00:03]}  Rd5+ {[%clk 0:00:24]} 46. Kb4 {[%clk 0:00:04]}  b5 {[%clk 0:00:24]} 0-1


[Site "https://www.chess.com"]